bitfinex-derivatives/quotes_ETHF0:USTF0_20250114
["timestamp","ask_amount","ask_price","bid_price","bid_amount"]
[1736881439365,0.31045,3223.0,3222.9,0.31043]
[1736881439871,3.79209716,3223.0,3222.9,41.11043]
[1736881440060,0.31046,3222.9,3222.8,0.31045]
[1736881440259,0.76416,3222.9,3222.8,0.31045]
[1736881440570,0.31048,3222.7,3222.6,0.31046]
[1736881441170,0.31048,3222.7,3222.3,3.98405]
[1736881441171,0.31048,3222.5,3222.4,41.11049]
[1736881441680,3.54138137,3222.5,3222.4,41.11049]
[1736881443872,3.23090137,3222.5,3222.4,41.11049]
[1736881444071,3.54138137,3222.5,3222.4,40.8]
[1736881444467,4.02958137,3222.5,3222.4,40.8]
[1736881444866,0.31051,3222.2,3221.8,0.31055]
[1736881445071,0.31056,3221.8,3221.7,0.31055]
[1736881445271,9.89819746,3222.1,3221.7,40.8]
[1736881445468,0.31054,3221.9,3221.8,0.31055]
[1736881445866,3.2649052,3221.9,3221.8,0.31055]
[1736881446270,3.2649052,3221.9,3221.8,3.51835]
[1736881446873,3.2649052,3221.9,3221.8,44.31835]
[1736881447070,3.2078,3222.5,3221.8,46.75925861]
[1736881447375,3.2078,3222.5,3222.4,0.31049]
[1736881447770,6.98723961,3222.5,3222.4,0.31049]
[1736881447987,6.67675961,3222.5,3222.4,41.11049]
[1736881448370,6.98723961,3222.5,3222.4,40.8]
[1736881449378,3.77943961,3222.5,3222.4,40.8]
[1736881449875,3.46895961,3222.5,3222.4,41.11049]
[1736881450076,3.77943961,3222.5,3222.4,40.8]
[1736881450376,0.31051,3222.2,3222.1,0.31052]
[1736881450770,3.42644443,3222.2,3222.1,0.31052]
[1736881450971,3.42644443,3222.2,3222.1,41.11052]
[1736881451276,0.31051,3222.3,3222.2,0.31051]
[1736881451666,4.5108,3222.6,3222.1,40.8]
[1736881451870,3.28719757,3222.3,3222.1,40.8]
[1736881452071,3.28719757,3222.3,3222.2,0.31051]
[1736881452274,4.5088,3222.6,3222.2,0.31051]
[1736881452473,0.3105,3222.3,3222.2,0.31051]
[1736881452774,3.4921863,3222.4,3222.1,40.8]
[1736881452981,3.4921863,3222.5,3222.4,0.31049]
[1736881453270,0.3105,3222.4,3222.3,0.3105]
[1736881453474,3.8026763,3222.5,3222.4,0.31049]
[1736881453676,0.31049,3222.5,3222.4,0.31049]
[1736881454076,3.86536977,3222.5,3222.4,0.31049]
[1736881454782,3.55487977,3222.5,3222.4,0.31049]
[1736881454972,3.86535977,3222.5,3222.4,0.31049]
[1736881455374,3.55487977,3222.5,3222.4,0.31049]
[1736881455977,3.86535977,3222.5,3222.4,0.31049]
[1736881456380,0.31048,3222.5,3222.4,0.31049]
[1736881456584,3.69246275,3222.5,3222.4,0.31049]
[1736881460379,3.38198275,3222.5,3222.4,0.31049]
[1736881460786,3.58508313,3222.7,3222.6,0.31047]
[1736881460985,0.31046,3222.7,3222.6,0.31047]
[1736881461487,0.31048,3222.6,3222.5,0.31048]
[1736881461778,3.2078,3222.6,3222.1,40.8]
[1736881461983,2.44090861,3222.4,3221.8,3.2078]
[1736881462183,0.31052,3222.2,3222.1,0.31052]
[1736881462581,0.31053,3222.1,3222.0,0.31053]
[1736881462785,0.4574,3222.1,3222.0,0.31053]
[1736881463087,4.13329158,3222.1,3222.0,0.31053]
[1736881463480,3.82277158,3222.1,3222.0,0.31053]
[1736881463784,4.13329158,3222.1,3222.0,0.31053]
[1736881464382,3.82277158,3222.1,3222.0,0.31053]
[1736881465288,3.36537158,3222.1,3222.0,41.11053]
[1736881465687,3.38165445,3222.3,3222.2,0.31051]
[1736881465890,1.6115,3222.4,3222.0,40.8]
[1736881466186,1.6115,3222.4,3222.3,0.3105]
[1736881466588,4.88680432,3222.4,3222.3,0.3105]
[1736881467587,4.88679432,3222.4,3222.3,0.3105]
[1736881469290,3.67308684,3222.4,3222.3,0.3105]
[1736881469495,3.27530432,3222.4,3222.3,0.3105]
[1736881474580,0.9623,3223.2,3222.8,0.31045]
[1736881474796,3.2078,3223.4,3223.3,0.31041]
[1736881474988,0.4976,3223.5,3223.4,0.3104]
[1736881475188,3.51815,3223.9,3223.8,0.31036]
[1736881475493,6.66223899,3223.9,3223.8,0.31036]
[1736881475987,0.31037,3223.8,3223.6,0.31037]
[1736881476192,0.31036,3223.8,3223.6,0.31037]
[1736881476395,3.26866199,3223.7,3223.6,0.31037]
[1736881476990,3.26866199,3223.7,3223.5,3.2078]
[1736881477298,5.72551164,3223.8,3223.1,3.2078]
[1736881477496,0.31042,3223.2,3223.1,3.51822]
[1736881477693,0.31039,3223.5,3223.4,0.31039]
[1736881477886,3.74190861,3223.8,3223.1,44.0078]
[1736881477887,3.49057804,3223.2,3223.1,44.0078]
[1736881478088,3.60352081,3223.5,3223.1,40.8]
[1736881478291,0.31039,3223.5,3223.1,40.8]
[1736881478587,3.49057804,3223.4,3223.3,0.3104]
[1736881478893,0.3104,3223.4,3223.3,0.3104]
[1736881479089,3.26516066,3223.7,3223.1,40.8]
[1736881479290,1.4022,3223.3,3222.6,2.44090861]
[1736881479496,0.31043,3223.1,3223.0,0.31043]
[1736881479892,3.7420557,3223.1,3223.0,0.31043]
[1736881480095,3.4316257,3223.1,3223.0,0.31043]
[1736881480395,1.4022,3223.3,3222.9,2.44090861]
[1736881480592,3.4316257,3223.2,3223.1,0.31043]
[1736881480790,1.4022,3223.3,3223.2,0.31042]
[1736881481198,4.67938779,3223.3,3223.2,0.31042]
[1736881483596,4.98979779,3223.3,3223.2,0.31042]
[1736881484701,4.67938779,3223.3,3223.2,0.31042]
[1736881485004,3.75608779,3223.3,3223.2,0.31042]
[1736881485392,0.4599,3223.7,3223.6,0.31038]
[1736881485698,3.93426623,3223.7,3223.6,0.31038]
[1736881485896,3.47436623,3223.7,3223.6,0.31038]
[1736881486198,3.78473623,3223.7,3223.6,41.11038]
[1736881486702,0.31042,3223.3,3223.2,0.31042]
[1736881487101,3.56183124,3223.3,3223.2,41.11042]
[1736881488003,3.56183124,3223.3,3223.2,40.8]
[1736881489902,3.56183124,3223.3,3223.2,41.11042]
[1736881490099,3.25141124,3223.3,3223.2,41.11042]
[1736881490500,3.53283882,3223.4,3223.3,0.31041]
[1736881490696,3.2078,3223.5,3223.3,0.31041]
[1736881490902,0.3104,3223.4,3223.3,0.31041]
[1736881491204,3.90460953,3223.4,3223.3,0.31041]
[1736881491702,3.59420953,3223.4,3223.3,0.31041]
[1736881495402,3.59420953,3223.4,3223.3,2.75131861]
[1736881495604,0.4645,3223.7,3223.3,2.75131861]
[1736881495801,0.4987,3223.8,3223.7,0.31037]
[1736881495999,0.9595,3223.8,3223.7,0.31037]
[1736881496201,4.24972629,3223.8,3223.7,0.31037]
[1736881496804,3.75102629,3223.8,3223.7,0.31037]
[1736881497107,0.499,3224.2,3223.6,2.44090861]
[1736881497305,0.9598,3224.2,3224.1,0.31033]
[1736881497509,4.29763315,3224.2,3224.1,0.31033]
[1736881497712,4.29763315,3224.2,3224.1,41.11033]
[1736881500199,3.79863315,3224.2,3224.1,41.11033]
[1736881502004,0.9467,3224.6,3224.5,0.31029]
[1736881502307,3.2078,3225.1,3225.0,0.31024]
[1736881502807,3.2078,3225.1,3225.0,40.8]
[1736881502808,6.60008153,3225.1,3225.0,40.8]
[1736881503013,6.91031153,3225.1,3225.0,40.8]
[1736881503603,9.35122014,3225.1,3225.0,40.8]
[1736881505608,6.91031153,3225.1,3225.0,41.11024]
[1736881505808,6.91031153,3225.1,3225.0,0.31024]
[1736881506008,6.60008153,3225.1,3224.5,0.77573]
[1736881506209,0.31026,3224.9,3224.8,0.31025]
[1736881506715,3.54089748,3224.9,3224.8,0.31025]
[1736881507116,3.23063748,3224.9,3224.8,0.31025]
[1736881507514,3.54088748,3224.9,3224.8,0.31025]
[1736881508516,3.23063748,3224.9,3224.8,0.31025]
[1736881509906,3.54088748,3224.9,3224.8,0.31025]
[1736881510112,0.31027,3224.7,3224.6,40.8]
[1736881510313,0.31028,3224.6,3224.5,0.31029]
[1736881510518,3.34593851,3224.7,3224.3,3.2078]
[1736881510717,3.34593851,3224.6,3224.4,40.8]
[1736881511008,3.34593851,3224.6,3223.9,3.2078]
[1736881511009,2.75119861,3224.5,3223.9,3.2078]
[1736881511216,0.31031,3224.3,3224.2,0.31031]
[1736881511614,3.27462295,3224.3,3224.2,41.11031]
[1736881512517,3.27462295,3224.3,3224.2,41.11032]
[1736881512910,3.27462295,3224.3,3224.2,40.8]
[1736881513110,0.31036,3223.8,3223.7,0.31036]
[1736881513612,3.68156168,3223.8,3223.7,41.11036]
[1736881514221,3.37120168,3223.8,3223.7,41.11036]
[1736881514411,3.37120168,3223.8,3223.7,40.8]
[1736881514412,3.68156168,3223.8,3223.7,40.8]
[1736881514617,3.51816,3223.8,3223.7,40.8]
[1736881514813,0.31039,3223.5,3223.4,0.00266091]
[1736881515223,3.63109742,3223.5,3223.4,0.31306091]
[1736881515416,3.32070742,3223.5,3223.4,0.31306091]
[1736881515719,3.32070742,3223.7,3223.4,0.00266091]
[1736881516022,0.31037,3223.7,3223.6,0.31037]
[1736881516420,3.31377,3223.7,3223.6,0.31038]
[1736881516811,3.31377,3223.7,3223.6,7.75128861]
[1736881517014,3.2078,3225.1,3224.4,0.3103]
[1736881517015,0.4894,3224.5,3224.4,0.3103]
[1736881517224,0.9768,3225.1,3224.4,46.44870861]
[1736881517523,3.42406536,3224.6,3224.5,0.31029]
[1736881517722,3.42406536,3225.0,3224.9,0.31025]
[1736881517917,0.9768,3225.1,3224.4,5.64870861]
[1736881518120,0.31026,3224.9,3224.4,5.64870861]
[1736881518317,3.80261242,3225.0,3224.8,41.11026]
[1736881518524,0.31025,3225.0,3224.8,41.11026]
[1736881518722,3.80261242,3224.9,3224.8,40.8]
[1736881518925,3.49236242,3224.9,3224.8,40.8]
[1736881519219,3.23458203,3225.0,3224.9,0.31025]
[1736881519415,1.28704,3225.1,3225.0,0.31024]
[1736881519617,0.9768,3225.1,3225.0,0.31024]
[1736881519811,4.21138203,3225.1,3225.0,0.31024]
[1736881520226,4.52161203,3225.1,3225.0,0.31024]
[1736881520427,4.21138203,3225.1,3225.0,0.31024]
[1736881521126,4.52161203,3225.1,3225.0,0.31024]
[1736881521320,4.21138203,3225.1,3225.0,0.31024]
[1736881521521,4.52161203,3225.1,3225.0,0.31024]
[1736881521927,4.21138203,3225.1,3225.0,0.31024]
[1736881522320,4.52161203,3225.1,3225.0,0.31024]
[1736881522627,0.31025,3225.0,3224.9,0.31025]
[1736881523033,0.31025,3224.9,3224.8,41.11026]
[1736881523222,0.31028,3224.7,3224.4,3.2078]
[1736881523421,6.56374754,3225.0,3224.4,3.2078]
[1736881523422,0.4805,3224.6,3224.4,3.2078]
[1736881523624,3.83644754,3224.6,3224.5,41.11028]
[1736881523927,0.9768,3225.1,3225.0,0.31024]
[1736881524324,4.55525462,3225.1,3225.0,0.31024]
[1736881527430,4.86548462,3225.1,3225.0,0.31024]
[1736881527827,0.31027,3224.8,3224.7,0.31027]
[1736881528133,3.80301852,3224.8,3224.7,0.31027]
[1736881528337,0.31028,3224.6,3224.5,40.8]
[1736881528534,0.4571,3224.7,3224.0,3.2078]
[1736881528735,0.31031,3224.3,3224.2,0.31031]
[1736881529134,3.66595519,3224.3,3224.2,41.11031]
[1736881529930,3.35564519,3224.3,3223.8,0.31035]
[1736881530135,2.44090861,3224.1,3223.4,0.00266091]
[1736881530331,0.4571,3224.0,3223.9,0.31034]
[1736881530631,3.39752582,3224.0,3223.9,41.11035]
[1736881532031,3.89214328,3224.2,3224.1,0.31033]
[1736881532332,0.31033,3224.2,3224.0,0.31034]
[1736881532528,3.89215328,3224.2,3224.1,0.31033]
[1736881532742,3.58182328,3224.2,3223.9,40.8]
[1736881532932,0.31034,3224.0,3223.9,41.11035]
[1736881533239,0.31032,3224.2,3224.1,0.31033]
[1736881533433,0.31034,3224.0,3223.9,41.11034]
[1736881533634,3.53326177,3224.1,3224.0,0.31034]
[1736881533834,3.7035,3224.4,3223.9,40.8]
[1736881534031,2.90004245,3224.3,3223.9,40.8]
[1736881534237,3.42331363,3224.1,3224.0,0.31034]
[1736881534432,0.31033,3224.2,3224.1,0.31033]
[1736881534831,3.42331363,3224.2,3224.1,0.31033]
[1736881535138,3.73363363,3224.2,3224.1,0.31033]
[1736881535642,0.31032,3224.2,3224.1,0.31033]
[1736881535939,0.31033,3224.1,3224.0,0.31033]
[1736881536238,0.31031,3224.3,3224.1,0.31033]
[1736881536432,3.7035,3224.4,3223.9,40.8]
[1736881536638,3.3404788,3224.3,3223.9,40.8]
[1736881536835,0.31032,3224.2,3224.1,0.31032]
[1736881537230,3.71691243,3224.2,3224.1,0.31032]
[1736881537434,0.31034,3224.0,3223.9,41.11034]
[1736881537631,3.40659243,3224.2,3223.9,40.8]
[1736881537835,0.31034,3224.1,3224.0,0.31033]
[1736881538032,0.31034,3224.0,3223.9,41.11034]
[1736881538443,3.69128821,3224.0,3223.9,41.11034]
[1736881538846,3.38094821,3224.0,3223.9,41.11034]
[1736881539243,3.2796272,3224.3,3224.0,0.31034]
[1736881539438,0.80601,3224.4,3223.9,41.57588]
[1736881539740,3.2796272,3224.3,3224.2,2.75122861]
[1736881540147,0.4577,3225.2,3225.1,0.31023]
[1736881540342,3.2078,3225.3,3225.1,2.44090861]
[1736881540557,2.44090861,3226.2,3225.8,0.31017]
[1736881540558,1.24416,3225.9,3225.8,0.31017]
[1736881540740,0.934,3225.9,3225.8,41.11017]
[1736881540939,4.47810388,3225.9,3225.8,41.11017]
[1736881541335,4.78826388,3225.9,3225.8,41.11017]
[1736881541740,4.00180388,3225.9,3225.8,41.11017]
[1736881544342,3.54410388,3225.9,3225.8,41.11017]
[1736881544750,3.46674805,3226.0,3225.9,0.31016]
[1736881544941,2.75103861,3226.2,3225.8,40.8]
[1736881545245,3.27524779,3226.0,3225.9,0.31016]
[1736881545650,0.31014,3226.1,3226.0,0.31014]
[1736881545843,2.75103861,3226.2,3226.0,0.31014]
[1736881546049,3.51935329,3226.1,3226.0,0.31014]
[1736881546440,0.31015,3226.0,3225.9,0.31015]
[1736881546641,3.51935329,3226.1,3225.8,40.8]
[1736881546840,3.51935329,3226.1,3225.2,3.2078]
[1736881546841,2.44090861,3225.9,3225.2,3.2078]
[1736881547047,0.31016,3225.9,3225.7,0.31017]
[1736881547246,3.09753843,3225.8,3225.7,0.31017]
[1736881547649,3.4414346,3226.0,3225.9,0.31015]
[1736881547846,0.78844,3226.1,3225.9,41.11015]
[1736881548244,0.78844,3226.1,3225.9,40.8]
[1736881548245,3.85315314,3226.0,3225.9,40.8]
[1736881548652,3.85315314,3226.0,3225.2,3.2078]
[1736881548653,3.54300314,3226.0,3225.2,3.2078]
[1736881548948,0.31022,3225.2,3225.1,0.31023]
[1736881549152,0.31022,3225.2,3225.1,40.8]
[1736881549343,3.80278879,3225.2,3225.1,40.8]
[1736881549744,7.01058879,3225.2,3225.1,40.8]
[1736881552954,7.40558253,3225.2,3225.1,40.8]
[1736881554248,7.40558253,3225.2,3224.0,3.2078]
[1736881554249,0.31033,3224.1,3224.0,3.2078]
[1736881554443,0.77571,3224.6,3224.1,0.31032]
[1736881554444,2.75123861,3224.2,3224.1,0.31032]
[1736881554951,5.74269004,3224.2,3223.6,3.2078]
[1736881555152,0.31033,3224.1,3223.6,3.2078]
[1736881555352,3.30178143,3224.2,3223.6,5.64870861]
[1736881555561,3.47969361,3224.0,3223.9,0.31035]
[1736881555851,5.92060222,3224.3,3223.9,40.8]
[1736881556051,2.44090861,3224.3,3223.9,40.8]
[1736881556259,3.70983001,3224.2,3224.1,0.31033]
[1736881556647,3.39951001,3224.2,3224.1,0.31033]
[1736881557855,3.70983001,3224.2,3224.1,0.31033]
[1736881558757,3.39951001,3224.2,3223.9,40.8]
[1736881558952,0.31034,3224.0,3223.9,40.8]
[1736881559457,3.55954829,3224.0,3223.9,41.11035]
[1736881559750,2.44090861,3224.3,3223.9,40.8]
[1736881559951,0.31034,3224.0,3223.9,40.8]
[1736881560157,0.31034,3224.0,3223.9,41.11035]
[1736881560356,3.45734822,3224.0,3223.9,40.8]
[1736881560558,3.45734822,3224.0,3223.9,41.11035]
[1736881560758,0.31034,3224.0,3223.9,41.11035]
[1736881561054,3.36170813,3224.0,3223.9,41.11035]
[1736881561251,0.31031,3224.3,3224.1,0.31032]
[1736881561550,3.36170813,3224.3,3224.2,0.31031]
[1736881561755,3.2078,3224.5,3224.4,0.3103]
[1736881561962,2.20799,3225.1,3224.1,3.2078]
[1736881561963,0.60370813,3224.4,3224.3,0.31031]
[1736881562156,3.51802,3225.3,3225.1,0.31023]
[1736881562354,0.4638,3225.4,3225.1,0.31023]
[1736881562355,3.92454427,3225.4,3225.1,0.31023]
[1736881562556,0.31024,3225.0,3224.9,3.51805]
[1736881562748,3.46074427,3225.2,3224.9,3.2078]
[1736881563049,0.31023,3225.2,3225.0,0.31024]
[1736881563249,2.90470861,3225.4,3225.0,0.31024]
[1736881563250,3.45239133,3225.1,3225.0,0.31024]
[1736881563649,3.45239133,3225.2,3224.9,5.64870861]
[1736881563854,3.2078,3226.1,3226.0,0.31015]
[1736881564056,3.2078,3226.6,3226.4,0.31011]
[1736881564461,0.25990087,3226.5,3226.4,0.31011]
[1736881565655,0.25990087,3226.5,3226.4,41.11011]
[1736881566555,0.25990087,3226.5,3226.4,44.31791]
[1736881569562,0.25990087,3226.5,3226.4,3.51791]
[1736881571659,0.002,3226.5,3226.4,6.47168398]
[1736881573360,0.002,3226.5,3226.4,47.27168398]
[1736881576363,0.002,3226.5,3226.4,44.31791]
[1736881576968,0.002,3226.5,3226.4,47.27168398]
[1736881577767,0.002,3226.5,3226.4,52.27168398]
[1736881579656,0.4841,3227.5,3227.4,0.31001]
[1736881580073,3.71238907,3227.5,3227.4,0.31001]
[1736881580257,3.71238907,3227.5,3227.4,41.11001]
[1736881582661,4.02238907,3227.5,3227.4,40.8]
[1736881582866,0.31004,3227.2,3227.1,0.31004]
[1736881583273,3.42533606,3227.2,3227.1,41.11004]
[1736881583666,0.31003,3227.2,3227.1,41.11004]
[1736881583968,3.73536606,3227.2,3227.1,40.8]
[1736881584166,3.42533606,3227.2,3227.1,41.11004]
[1736881584567,3.55773057,3227.4,3227.3,0.31002]
[1736881584769,0.79411,3227.5,3227.2,3.2078]
[1736881584965,0.79411,3227.5,3227.4,0.31001]
[1736881585374,4.03497719,3227.5,3227.4,0.31001]
[1736881585871,4.34497719,3227.5,3227.4,0.31001]
[1736881586777,4.34498719,3227.5,3227.4,0.31001]
[1736881588179,4.03497719,3227.5,3227.4,0.31001]
[1736881588373,4.34497719,3227.5,3227.4,0.31001]
[1736881588778,4.03497719,3227.5,3227.4,0.31001]
[1736881589971,4.34497719,3227.5,3227.4,0.31001]
[1736881590372,0.31002,3227.4,3227.3,0.31002]
[1736881590775,3.23510179,3227.4,3227.3,0.31002]
[1736881591675,3.54511179,3227.4,3227.3,0.31002]
[1736881591873,3.23510179,3227.4,3227.3,0.31002]
[1736881592668,3.54511179,3227.4,3227.3,0.31002]
[1736881593273,3.54511179,3227.4,3227.2,3.2078]
[1736881593274,3.23510179,3227.4,3227.2,3.2078]
[1736881593481,0.31002,3227.3,3227.2,3.51782]
[1736881593978,3.77988675,3227.3,3227.2,3.51782]
[1736881594185,0.31003,3227.2,3227.1,41.11004]
[1736881594375,0.80243,3227.2,3227.1,41.11004]
[1736881594574,4.0575434,3227.2,3227.1,41.11004]
[1736881594879,6.9553134,3227.2,3226.4,3.2078]
[1736881595087,3.2078,3226.7,3225.9,5.64381233]
[1736881595273,0.3101,3226.5,3226.4,0.3101]
[1736881595679,0.31011,3226.4,3226.3,0.31011]
[1736881595880,0.31011,3226.4,3226.3,41.11011]
[1736881596072,3.23085338,3226.4,3226.3,41.11011]
[1736881596268,3.23085338,3226.4,3226.3,44.31791]
[1736881597787,3.54096338,3226.4,3226.3,44.31791]
[1736881597983,3.54096338,3226.4,3226.3,44.0078]
[1736881598983,3.54096338,3226.4,3226.3,40.8]
[1736881599972,3.23085338,3226.4,3225.9,3.2078]
[1736881600174,3.23085338,3226.4,3225.6,2.43601233]
[1736881600175,5.64381233,3226.3,3225.6,0.31018]
[1736881600374,5.64381233,3226.3,3225.7,40.8]
[1736881600572,3.59772188,3226.2,3226.1,0.31014]
[1736881600777,3.28759188,3226.2,3226.1,0.31014]
[1736881601479,3.28759188,3226.2,3226.1,41.11014]
[1736881603176,3.59772188,3226.2,3226.1,41.11014]
[1736881603381,3.6855071,3226.4,3226.3,0.31011]
[1736881603781,0.9438,3226.5,3226.1,40.8]
[1736881603982,0.31013,3226.2,3226.1,41.11013]
[1736881604383,3.82024125,3226.2,3226.1,41.11013]
[1736881604884,3.51011125,3226.2,3226.1,41.11013]
[1736881605185,0.31013,3226.2,3226.1,41.11013]
[1736881605385,0.31012,3226.3,3226.2,0.31012]
[1736881605786,3.80628978,3226.3,3226.2,0.31012]
[1736881606188,0.31013,3226.2,3226.1,40.8]
[1736881606392,0.31013,3226.2,3226.1,41.11014]
[1736881606690,3.81331376,3226.2,3226.1,41.11014]
[1736881608193,3.50318376,3226.2,3226.1,41.11014]
[1736881608389,0.9438,3226.5,3226.1,41.11014]
[1736881608585,0.4881,3226.6,3226.5,0.3101]
[1736881608890,3.99445656,3226.6,3226.5,0.3101]
[1736881609090,3.50635656,3226.6,3226.5,0.3101]
[1736881610188,3.50635656,3226.6,3226.5,41.1101]
[1736881611388,0.31009,3226.6,3226.5,41.1101]
[1736881611791,3.58041284,3226.6,3226.5,41.1101]
[1736881611992,3.27032284,3226.6,3226.5,41.1101]
[1736881612293,0.31009,3226.7,3226.6,0.31009]
[1736881612595,3.59972917,3226.6,3226.5,0.31009]
[1736881612991,0.3101,3226.6,3226.5,41.11009]
[1736881613187,3.73741673,3226.6,3226.5,41.11009]
[1736881613690,3.42731673,3226.6,3226.5,41.11009]
[1736881613882,0.4586,3227.0,3226.9,0.31006]
[1736881614290,3.92685881,3227.0,3226.9,0.31006]
[1736881614995,4.23690881,3227.0,3226.9,0.31006]
[1736881616395,3.92685881,3227.0,3226.9,0.31006]
[1736881616894,4.23690881,3227.0,3226.9,0.31006]
[1736881618889,3.92685881,3227.0,3226.9,0.31006]
[1736881619693,3.46825881,3227.0,3226.9,3.51786]
[1736881619988,0.4991,3227.4,3226.9,3.51786]
[1736881620189,3.49200276,3227.1,3227.0,0.31005]
[1736881620390,3.24662218,3227.6,3227.0,3.2078]
[1736881620587,0.4865,3227.8,3227.4,3.2078]
[1736881620782,0.4865,3227.8,3227.7,0.30998]
[1736881620987,0.79647,3227.8,3227.7,0.30998]
[1736881621294,3.73312218,3227.8,3227.7,0.30998]
[1736881621497,3.73312218,3227.8,3227.7,41.10998]
[1736881622294,3.24662218,3227.8,3227.7,41.10998]
[1736881622500,0.4865,3228.4,3227.7,40.8]
[1736881622791,0.4865,3228.4,3228.3,2.74594233]
[1736881622987,4.68273969,3228.8,3228.7,0.30989]
[1736881623184,1.4263,3228.8,3228.7,0.30989]
[1736881623396,5.16761141,3228.8,3228.6,2.74590233]
[1736881623691,5.16761141,3228.8,3228.7,40.8]
[1736881623897,5.16761141,3228.8,3228.7,41.10989]
[1736881625596,4.85773141,3228.8,3228.7,41.10989]
[1736881625797,5.16761141,3228.8,3228.7,41.10989]
[1736881625991,4.85773141,3228.8,3228.7,41.10989]
[1736881629194,5.16761141,3228.8,3228.7,41.10989]
[1736881629594,5.16761141,3228.8,3228.4,3.2078]
[1736881629595,0.3099,3228.6,3228.5,0.3099]
[1736881629789,5.16761141,3228.8,3228.6,0.30989]
[1736881629995,0.30989,3228.7,3228.6,0.30989]
[1736881630194,3.90464719,3228.7,3228.6,0.30989]
[1736881630496,0.3099,3228.6,3228.5,0.3099]
[1736881630899,0.30991,3228.5,3228.4,44.0078]
[1736881631097,0.30991,3228.5,3228.4,3.2078]
[1736881631290,3.63551484,3228.5,3228.4,3.2078]
[1736881632192,3.63551484,3228.5,3228.2,0.30993]
[1736881632193,8.32560484,3228.5,3227.5,3.2078]
[1736881632395,0.30997,3227.9,3227.8,0.30997]
[1736881632597,0.30997,3227.9,3227.8,41.10997]
[1736881632796,3.85732055,3227.9,3227.8,41.10997]
[1736881633199,3.85732055,3227.9,3227.8,40.8]
[1736881634901,3.85732055,3227.9,3227.1,3.2078]
[1736881634902,3.54735055,3227.9,3227.1,3.2078]
[1736881635092,0.31005,3227.1,3227.0,0.31004]
[1736881635495,6.69426268,3227.1,3226.6,3.6822]
[1736881635904,6.69426268,3227.1,3227.0,40.8]
[1736881636099,7.00430268,3227.1,3227.0,40.8]
[1736881636404,7.50290268,3227.1,3227.0,40.8]
[1736881637804,7.99250268,3227.1,3227.0,40.8]
[1736881639613,0.3101,3226.5,3226.4,0.3101]
[1736881639808,3.5179,3226.5,3226.4,0.3101]
[1736881640003,0.31011,3226.4,3226.3,0.31011]
[1736881640216,6.94877744,3226.5,3226.4,0.31011]
[1736881640418,3.2078,3226.5,3226.4,0.31011]
[1736881640614,6.66946829,3226.5,3226.4,41.11011]
[1736881642215,3.46166829,3226.5,3226.4,41.11011]
[1736881642613,3.36793522,3226.7,3226.4,40.8]
[1736881642809,0.57266504,3226.6,3226.5,0.31009]
[1736881643012,0.3101,3226.6,3226.5,0.31009]
[1736881643307,3.53780373,3226.6,3226.5,0.31009]
[1736881643509,3.22770373,3226.6,3226.4,40.8]
[1736881643714,0.3101,3226.5,3226.4,40.8]
[1736881644114,0.3101,3226.5,3226.4,41.11011]
[1736881644115,3.53780373,3226.5,3226.4,41.11011]
[1736881644414,3.22770373,3226.5,3226.4,41.11011]
[1736881644813,0.3101,3226.5,3226.4,41.11011]
[1736881645014,3.5179,3226.5,3226.4,41.11011]
[1736881645217,7.05170426,3226.5,3226.4,41.11011]
[1736881647528,7.05170426,3226.5,3226.4,40.8]
[1736881647823,7.05170426,3226.5,3226.4,41.11011]
[1736881648920,7.05170426,3226.5,3226.4,40.8]
[1736881649520,7.05170426,3226.5,3226.4,41.11011]
[1736881649720,7.05170426,3226.5,3226.4,40.8]
[1736881650127,7.05170426,3226.5,3226.4,41.11011]
[1736881656030,6.74160426,3226.5,3226.4,41.11011]
[1736881656229,3.2078,3226.9,3226.8,0.31007]
[1736881656724,0.3101,3226.6,3226.5,0.31008]
[1736881656929,0.31008,3226.7,3226.6,0.31008]
[1736881657429,3.86282672,3226.7,3226.6,0.31008]
[1736881658833,3.86282672,3226.7,3226.5,0.31009]
[1736881658834,0.3101,3226.6,3226.5,0.31009]
[1736881659234,3.89147028,3226.6,3226.5,0.31009]
[1736881661634,3.58137028,3226.6,3226.4,40.8]
[1736881661829,0.3101,3226.5,3226.4,41.1101]
[1736881662229,3.70502218,3226.5,3226.4,41.1101]
[1736881663227,6.60272218,3226.5,3226.3,0.31011]
[1736881663530,0.80551,3226.4,3226.3,0.31011]
[1736881663731,0.80551,3226.4,3226.3,41.11011]
[1736881663938,4.15174664,3226.4,3226.3,41.11011]
[1736881664332,3.84163664,3226.4,3226.3,41.11011]
[1736881665130,3.34623664,3226.4,3226.3,41.11011]
[1736881665936,3.65634664,3226.4,3226.3,41.11011]
[1736881669029,3.34623664,3226.4,3226.3,41.11011]
[1736881669442,3.65634664,3226.4,3226.3,41.11011]
[1736881671443,3.34623664,3226.4,3226.3,41.11011]
[1736881673232,3.65634664,3226.4,3226.3,41.11011]
[1736881673438,3.34623664,3226.4,3226.3,44.31791]
[1736881674445,0.31011,3226.4,3226.3,41.11011]
[1736881674837,3.81570169,3226.4,3226.3,41.11011]
[1736881677140,4.26580169,3226.4,3226.3,41.11011]
[1736881680039,7.09850826,3226.4,3226.3,40.8]
[1736881680739,4.66249593,3226.4,3226.3,40.8]
[1736881683247,7.09850826,3226.4,3226.3,40.8]
[1736881684551,3.50559169,3226.4,3226.3,43.54613233]
[1736881685246,3.56483907,3226.6,3226.3,40.8]
[1736881685543,0.31011,3226.4,3226.3,41.11011]
[1736881685743,0.39638843,3226.8,3226.3,43.23601233]
[1736881685942,3.33236742,3226.6,3226.3,43.23601233]
[1736881686143,3.33236742,3226.7,3226.6,0.31009]
[1736881686339,0.31008,3226.8,3226.3,44.01129233]
[1736881686545,0.31008,3226.8,3226.7,0.31008]
[1736881686745,4.46957,3226.9,3226.8,0.31007]
[1736881687255,7.81639248,3226.9,3226.8,0.31007]